lending/lending_fUSD_20241212
["ID","MTS","AMOUNT","RATE_DAILY","PERIOD"]
[345079835,1733987438290,-748.93566501,0.0001098,2]
[345079836,1733987438301,-547.37781956,0.00010989,2]
[345079837,1733987438311,-494.73305302,0.0001099,2]
[345079838,1733987438352,-52.64476654,0.0001099,2]
[345079839,1733987438362,-748.93566501,0.0001099,2]
[345079840,1733987438372,-547.37781956,0.0001099,2]
[345079841,1733987438382,-547.37781956,0.00010999,2]
[345079842,1733987438392,-222.840976,0.00010999,2]
[345079843,1733987438401,-604.97682328,0.00011,2]
[345079844,1733987438413,-18195.08847375,0.00011,2]
[345079917,1733987440238,-9961.88684505,0.00011,2]
[345079918,1733987440251,-1238.75710087,0.00011,2]
[345079919,1733987440261,-748.93566501,0.00011,2]
[345079920,1733987440271,-1287.39,0.00011042,2]
[345079921,1733987440280,-183.64339639,0.00011042,2]
[345079922,1733987440290,-1340.0736,0.00011073,2]
[345079923,1733987440300,-541.7547093,0.00011073,2]
[345079924,1733987440311,-896.73535854,0.00011088,2]
[345079925,1733987440322,-384.7932089,0.00011088,2]
[345079926,1733987440332,-500.0,0.00011089,2]
[345079927,1733987440341,-500.0,0.00011089,2]
[345079928,1733987440351,-500.0,0.00011089,2]
[345079929,1733987440361,-693.61,0.00011089,2]
[345079930,1733987440371,-500.0,0.00011089,2]
[345079931,1733987440381,-500.0,0.00011089,2]
[345079932,1733987440391,-500.0,0.00011089,2]
[345079933,1733987440400,-500.0,0.00011089,2]
[345079934,1733987440410,-500.0,0.00011089,2]
[345079935,1733987440420,-500.0,0.00011089,2]
[345079936,1733987440429,-500.0,0.00011089,2]
[345079937,1733987440439,-500.0,0.00011089,2]
[345079938,1733987440448,-500.0,0.00011089,2]
[345079939,1733987440458,-500.0,0.00011089,2]
[345079940,1733987440467,-500.0,0.00011089,2]
[345079941,1733987440476,-550.89121433,0.00011089,2]
[345079942,1733987440490,-560.41,0.00011089,2]
[345079943,1733987440499,-500.0,0.00011089,2]
[345079944,1733987440509,-500.0,0.00011089,2]
[345079945,1733987440519,-500.0,0.00011089,2]
[345079946,1733987440528,-500.0,0.00011089,2]
[345079947,1733987440538,-500.0,0.00011089,2]
[345079948,1733987440547,-500.0,0.00011089,2]
[345079949,1733987440557,-500.0,0.00011089,2]
[345079950,1733987440567,-500.0,0.00011089,2]
[345079951,1733987440577,-500.0,0.00011089,2]
[345079952,1733987440587,-500.0,0.00011089,2]
[345079953,1733987440596,-500.0,0.00011089,2]
[345079954,1733987440606,-500.0,0.00011089,2]
[345079955,1733987440616,-500.0,0.00011089,2]
[345079956,1733987440626,-500.0,0.00011089,2]
[345079957,1733987440635,-500.0,0.00011089,2]
[345079958,1733987440644,-500.0,0.00011089,2]
[345079959,1733987440654,-500.0,0.00011089,2]
[345079960,1733987440663,-500.0,0.00011089,2]
[345079961,1733987440672,-500.0,0.00011089,2]
[345079962,1733987440681,-500.0,0.00011089,2]
[345079963,1733987440692,-500.0,0.00011089,2]
[345079964,1733987440701,-500.0,0.00011089,2]
[345079965,1733987440711,-500.0,0.00011089,2]
[345079966,1733987440720,-500.0,0.00011089,2]
[345079967,1733987440732,-603.63,0.00011089,2]
[345079968,1733987440742,-500.0,0.00011089,2]
[345079969,1733987440752,-500.0,0.00011089,2]
[345079970,1733987440761,-500.0,0.00011089,2]
[345079971,1733987440770,-511.02205838,0.00011089,2]
[345079972,1733987440780,-500.0,0.00011089,2]
[345079973,1733987440790,-500.0,0.00011089,2]
[345079974,1733987440799,-529.69975912,0.00011089,2]
[345079975,1733987440809,-376.41,0.00011089,2]
[345079976,1733987440818,-515.12087812,0.00011089,2]
[345079977,1733987440827,-7500.0,0.00011089,2]
[345079978,1733987440836,-500.0,0.00011089,2]
[345079979,1733987440845,-500.0,0.00011089,2]
[345079980,1733987440854,-500.0,0.00011089,2]
[345079981,1733987440863,-500.0,0.00011089,2]
[345079982,1733987440872,-501.7952249,0.00011089,2]
[345079983,1733987440881,-500.0,0.00011089,2]
[345079984,1733987440890,-500.0,0.00011089,2]
[345079985,1733987440900,-553.52793166,0.00011089,2]
[345079986,1733987440909,-500.0,0.00011089,2]
[345079987,1733987440919,-2913.15,0.00011089,2]
[345079988,1733987440928,-500.0,0.00011089,2]
[345079989,1733987440937,-500.0,0.00011089,2]
[345079990,1733987440947,-500.0,0.00011089,2]
[345079991,1733987440956,-507.54701135,0.00011089,2]
[345079992,1733987440966,-30027.71544153,0.0001109,2]
[345079993,1733987440978,-444.72631735,0.0001109,2]
[345079997,1733987443497,-500.0,0.00011089,2]
[345079998,1733987443507,-500.0,0.00011089,2]
[345079999,1733987443517,-36.08000014,0.0001109,2]
[345080005,1733987446179,-500.0,0.00011089,2]
[345080006,1733987446188,-78.9,0.0001109,2]
[345080007,1733987446200,-1330.06892336,0.0001109,2]
[345080008,1733987448072,152.15,8.26e-05,2]
[345080009,1733987458400,214.29819919,0.0002,120]
[345080010,1733987849385,500.0,9e-05,4]
[345080011,1733987889841,482.7,8.219e-05,2]
[345080013,1733987929358,500.0,9.6e-05,5]
[345080021,1733988354360,558.21937023,6.94e-05,2]
[345080040,1733988632557,-3636.4816,9.965e-05,2]
[345080041,1733988632566,-300.0,0.00010016,2]
[345080042,1733988632575,-4974.81465008,0.00010017,2]
[345080043,1733988632706,-1130.09231517,0.00010017,2]
[345080044,1733988632717,-3964.38303475,0.00010017,2]
[345080045,1733988632727,-171.97,0.00010023,2]
[345080046,1733988632736,-1000.0,0.00010059,2]
[345080047,1733988632746,-150.0,0.00010059,2]
[345080049,1733988632755,-31866.73515317,0.0001006,2]
[345080051,1733988632766,-29932.55788102,0.0001006,2]
[345080098,1733988638305,-17263.39438075,0.0001006,2]
[345080105,1733988640364,-549.6931745,0.0001006,2]
[345080106,1733988640422,-251.02467882,0.0001006,2]
[345080107,1733988640438,-10073.183687,0.0001006,2]
[345080114,1733988643258,-7764.0017081,0.0001006,2]
[345080115,1733988643270,-3197.54513101,0.0001006,2]
[345080116,1733988643388,-888.46493396,0.0001006,2]
[345080117,1733988643399,-367.16927167,0.0001006,2]
[345080118,1733988643410,-250.0,0.00010062,2]
[345080119,1733988643419,-684.77265412,0.00010066,2]
[345080120,1733988643430,-315.22734588,0.00010066,2]
[345080121,1733988643439,-372.85,0.00010071,2]
[345080122,1733988643448,-2500.0,0.0001043,2]
[345080123,1733988643458,-1106.98494549,0.0001043,2]
[345080124,1733988643581,-1393.01505451,0.0001043,2]
[345080125,1733988643590,-482.7,0.00010483,2]
[345080126,1733988643599,-427.494,0.0001055,2]
[345080127,1733988643608,-2528.00092886,0.000109,2]
[345080128,1733988643620,-298.78384018,0.000109,2]
[345080129,1733988643631,-2539.908,0.000109,2]
[345080130,1733988643659,-426.29565446,0.000109,2]
[345080131,1733988643671,-2239.75999993,0.000109,2]
[345080132,1733988643683,-714.57653411,0.000109,2]
[345080133,1733988643704,-18231.27324436,0.000109,2]
[345080136,1733988646290,-1139.1771887,0.000109,2]
[345080137,1733988646327,-8896.85184912,0.000109,2]
[345080138,1733988646364,-946.676729,0.000109,2]
[345080139,1733988646795,-2096.34144121,0.000109,2]
[345080140,1733988679787,15996799.70180081,0.0002,120]
[345080141,1733988679816,3000000.0,0.0002,120]
[345080149,1733988784117,459.68,8.219e-05,2]
[345080152,1733988933656,500.0,8.364e-05,2]
[345080153,1733988933961,900.0,9.46e-05,2]
[345080155,1733989105816,-150.0,0.0002,120]
[345080156,1733989105840,-150.0,0.0002,120]
[345080157,1733989105869,-150.0,0.00020927,120]
[345080158,1733989105891,-1000.0,0.00021,120]
[345080159,1733989123379,250.0,9.234e-05,2]
[345080160,1733989130261,1000.0,9.234e-05,2]
[345080161,1733989131787,2000.0,9.244e-05,2]
[345080162,1733989189045,3858.24904395,0.00021,120]
[345080163,1733989203316,150.0,9.244e-05,2]
[345080164,1733989203615,150.0,9.244e-05,2]
[345080165,1733989203818,150.0,9.244e-05,2]
[345080166,1733989204004,296.45618205,9.244e-05,2]
[345080167,1733989206914,3737.85,9.28e-05,2]
[345080168,1733989213885,1500.0,9.28e-05,2]
[345080169,1733989222631,4581.1,9.28e-05,2]
[345080170,1733989226978,500.0,9.6e-05,4]
[345080171,1733989249883,600.121216,0.00021,120]
[345080172,1733989264153,250.0,9.28e-05,2]
[345080173,1733989267071,600.121216,0.00021,120]
[345080174,1733989275643,500.0,9.6e-05,4]
[345080175,1733989289127,429.21,9.6e-05,5]
[345080176,1733989293985,231.95,9.264e-05,2]
[345080177,1733989345352,500.0,9.6e-05,5]
[345080178,1733989349341,166.81,9.254e-05,2]
[345080180,1733989350870,200.0,9.254e-05,2]
[345080181,1733989368650,166.04,9.261e-05,2]
[345080182,1733989379571,750.58,9.266e-05,2]
[345080183,1733989382010,200.0,9.266e-05,2]
[345080184,1733989386860,500.0,9.271e-05,2]
[345080185,1733989425242,2843.94,9.271e-05,2]
[345080186,1733989430391,901.72,9.271e-05,2]
[345080187,1733989431857,250.0,9.271e-05,2]
[345080188,1733989461801,1517.8,9.279e-05,2]
[345080189,1733989471822,370.0,9.6e-05,4]
[345080190,1733989492199,420.51,9.6e-05,5]
[345080191,1733989546761,2419.0,9.588e-05,2]
[345080192,1733989593608,1835.617739,9.595e-05,2]
[345080193,1733989602837,150.48609969,8.704e-05,2]
[345080194,1733989630607,300.0,9.2e-05,3]
[345080195,1733989632895,700.0,9.3e-05,3]
[345080196,1733989637070,1000.0,9.4e-05,3]
[345080197,1733989639211,1400.0,9.5e-05,3]
[345080198,1733989641297,1700.0,9.6e-05,3]
[345080199,1733989658844,2080.28,9.177e-05,2]
[345080200,1733989660883,250.0,9.6e-05,4]
[345080201,1733989665228,250.0,9.6e-05,5]
[345080202,1733989701456,200.0,9.361e-05,2]
[345080203,1733989726276,173.34,7.397e-05,2]
[345080204,1733989726949,173.34,8.312e-05,2]
[345080205,1733989727020,173.34,9.227e-05,2]
[345080206,1733989733232,250.0,9.6e-05,5]
[345080207,1733989735742,250.0,9.6e-05,4]
[345080208,1733989740070,2792.4,8.219e-05,2]
[345080209,1733989746860,600.121216,0.00021,120]
[345080210,1733989785664,1973.64,9.234e-05,2]
[345080211,1733989829919,2500.0,9.585e-05,2]
[345080218,1733989831492,-2044.0,9.644e-05,2]
[345080219,1733989831502,-662.0,9.644e-05,2]
[345080220,1733989831513,-238.03738522,9.663e-05,2]
[345080221,1733989831522,-500.0,9.663e-05,2]
[345080222,1733989831531,-300.0,9.684e-05,2]
[345080223,1733989831540,-381.20306006,9.685e-05,2]
[345080224,1733989831552,-1342.410005,9.685e-05,2]
[345080225,1733989831563,-2084.81537,9.685e-05,2]
[345080226,1733989831574,-5850.0,9.685e-05,2]
[345080227,1733989831586,-22176.72410466,9.685e-05,2]
[345080228,1733989831610,-3101.33987316,9.685e-05,2]
[345080229,1733989831621,-1587.89459183,9.685e-05,2]
[345080230,1733989831632,-332441.99999999,9.685e-05,2]
[345080231,1733989831769,-188985.19263547,9.685e-05,2]
[345080232,1733989831834,-390.60828859,9.685e-05,2]
[345080233,1733989831846,-2350.52590199,9.685e-05,2]
[345080327,1733989833177,263.45,7.397e-05,2]
[345080328,1733989833375,263.45,8.137e-05,2]
[345080329,1733989833582,263.45,8.876e-05,2]
[345080339,1733989837396,-263.45,9.616e-05,2]
[345080340,1733989837405,-258.29533198,9.685e-05,2]
[345080341,1733989837600,-8244511.32738225,9.685e-05,2]
[345080342,1733989837612,-503.598,9.685e-05,2]
[345080343,1733989837623,-542.92,9.685e-05,2]
[345080344,1733989837634,-4224.0978052,9.685e-05,2]
[345080345,1733989837645,-116054.71194091,9.685e-05,2]
[345080346,1733989837657,-2016.27125475,9.685e-05,2]
[345080347,1733989837687,-11786.65839099,9.685e-05,2]
[345080349,1733989839459,-3142.80000004,9.685e-05,2]
[345080350,1733989839471,-3928.04104428,9.685e-05,2]
[345080351,1733989839558,-1627.05411205,9.685e-05,2]
[345080355,1733989842616,-8775.88607294,9.685e-05,2]
[345080356,1733989842863,-2435.72012542,9.685e-05,2]
[345080357,1733989842967,-4373.01527432,9.685e-05,2]
[345080361,1733989843697,191.0,9.588e-05,2]
[345080363,1733989845571,-3275.7499995,9.685e-05,2]
[345080364,1733989845636,-9760.0,9.685e-05,2]
[345080365,1733989845649,-337.18494803,9.685e-05,2]
[345080367,1733989888108,237.121216,0.00021,120]
[345080368,1733989902462,1054.45,9.266e-05,2]
[345080369,1733989902854,400.0,9.4e-05,3]
[345080370,1733989904950,800.0,9.5e-05,3]
[345080371,1733989907043,1200.0,9.6e-05,3]
[345080372,1733989924500,600.121216,0.00021,120]
[345080374,1733989944590,300.0,9.4e-05,3]
[345080375,1733989946708,600.0,9.5e-05,3]
[345080376,1733989948816,900.0,9.6e-05,3]
[345080377,1733989955577,60800.5712,9.585e-05,2]
[345080378,1733989966738,600.121216,0.00021,120]
[345080379,1733989980988,966.12,9.295e-05,2]
[345080380,1733990036050,14294.8349,9.585e-05,2]
[345080381,1733990061445,1000.0,9.219e-05,2]
[345080382,1733990137855,300.0,9.219e-05,2]
[345080383,1733990154219,898.15,9.304e-05,2]
[345080384,1733990232489,250.0,9.313e-05,2]
[345080385,1733990254222,200.0,9.313e-05,2]
[345080386,1733990339834,200.0,9.291e-05,2]
[345080387,1733990366300,509.12,9.312e-05,2]
[345080388,1733990367454,250.0,9.303e-05,2]
[345080389,1733990395793,963.81,9.312e-05,2]
[345080390,1733990415387,250.0,9.286e-05,2]
[345080391,1733990429783,5000.0,9.585e-05,2]
[345080392,1733990431917,150.0,0.00020779,120]
[345080393,1733990435322,36971.9828,9.585e-05,2]
[345080394,1733990461397,2455.40870994,9.59e-05,2]
[345080395,1733990490702,150.0,0.00020735,120]
[345080396,1733990572336,1254.82,9.287e-05,2]
[345080397,1733990610779,150.0,0.00018668,120]
[345080398,1733990689086,500.0,9.285e-05,2]
[345080399,1733990731603,150.0,0.00018106,120]
[345080400,1733990756915,2676.17,8.219e-05,2]
[345080401,1733990776971,175.63,7.435e-05,2]
[345080402,1733990777174,175.63,9.294e-05,2]
[345080403,1733990784194,1313.65,9.293e-05,2]
[345080404,1733990821178,700.0,9.4e-05,3]
[345080405,1733990823285,1400.0,9.5e-05,3]
[345080406,1733990825406,2100.0,9.6e-05,3]
[345080407,1733990842751,50000.0,9e-05,2]
[345080408,1733990970697,150.0,0.00016213,120]
[345080409,1733990978002,400.09375904,9e-05,2]
[345080410,1733990995710,1500.0,9.365e-05,2]
[345080411,1733990996027,1500.0,9.456e-05,2]
[345080412,1733990998776,958.46,9.344e-05,2]
[345080413,1733991003257,304.0,9e-05,30]
[345080414,1733991003692,304.0,9.684e-05,30]
[345080415,1733991004174,304.0,0.00010368,30]
[345080416,1733991004800,304.0,0.00011053,30]
[345080417,1733991005132,304.0,0.00011737,30]
[345080418,1733991005418,304.0,0.00012421,30]
[345080420,1733991030720,150.0,0.00017967,120]
[345080425,1733991032087,-300.0,9.683e-05,2]
[345080426,1733991032097,-557.76981249,9.684e-05,2]
[345080427,1733991032113,-353.730012,9.684e-05,2]
[345080428,1733991032124,-547.1942875,9.684e-05,2]
[345080429,1733991032255,-7086.6713248,9.684e-05,2]
[345080430,1733991032265,-501.37,9.684e-05,2]
[345080431,1733991032275,-5911.9586752,9.685e-05,2]
[345080432,1733991032359,-499.52,9.685e-05,2]
[345080462,1733991037692,-9276.65135089,9.685e-05,2]
[345080463,1733991037796,-508.31475931,9.685e-05,2]
[345080464,1733991037912,-1866.88,9.685e-05,2]
[345080465,1733991037924,-1001.63556354,9.685e-05,2]
[345080507,1733991039589,-274.9096,9.685e-05,2]
[345080508,1733991039697,-328.222468,9.685e-05,2]
[345080509,1733991039751,-32060.00933479,9.685e-05,2]
[345080510,1733991041642,-4671.14,9.685e-05,2]
[345080511,1733991041696,-706.74967286,9.685e-05,2]
[345080519,1733991042662,-7318.17765225,9.685e-05,2]
[345080520,1733991042676,-1078.88186558,9.685e-05,2]
[345080521,1733991042713,-7208.5,9.685e-05,2]
[345080522,1733991042725,-5098.79398675,9.685e-05,2]
[345080523,1733991042820,-670.39156968,9.685e-05,2]
[345080524,1733991042833,-1668.02297108,9.685e-05,2]
[345080525,1733991042844,-993.12736041,9.685e-05,2]
[345080526,1733991042874,-8717.94829899,9.685e-05,2]
[345080527,1733991042886,-9323.0196165,9.685e-05,2]
[345080528,1733991042898,-36354.95421401,9.685e-05,2]
[345080531,1733991043087,-1868744.53732037,9.685e-05,2]
[345080532,1733991043099,-11880.2065004,9.685e-05,2]
[345080549,1733991045611,-543.97783044,9.685e-05,2]
[345080559,1733991045770,-40167.956165,9.685e-05,2]
[345080561,1733991045782,-40671.38551,9.685e-05,2]
[345080580,1733991046036,-502540.13418524,9.685e-05,2]
[345080588,1733991046080,586.0,9.588e-05,2]
[345080594,1733991047311,1000.0,9.339e-05,2]
[345080595,1733991090754,150.0,0.00019684,120]
[345080597,1733991180308,-150.0,9.684e-05,2]
[345080598,1733991180331,-500.0,9.684e-05,2]
[345080599,1733991180355,-8398805.2280153,9.685e-05,2]
[345080600,1733991180377,-2800.0,9.7e-05,3]
[345080601,1733991180400,-500.0,9.734e-05,2]
[345080602,1733991180422,-3600.0,9.8e-05,3]
[345080603,1733991180444,-500.0,9.821e-05,2]
[345080604,1733991180473,-151.68,9.834e-05,2]
[345080605,1733991180495,-975.22,9.84e-05,2]
[345080606,1733991180516,-871.14,9.84e-05,2]
[345080607,1733991180538,-768.88,9.84e-05,2]
[345080608,1733991180560,-397.61,9.84e-05,2]
[345080609,1733991180582,-364.47,9.84e-05,2]
[345080610,1733991180602,-364.47,9.84e-05,2]
[345080611,1733991180622,-301.17,9.84e-05,2]
[345080612,1733991180644,-150.0,9.863e-05,2]
[345080613,1733991180665,-174.26,9.863e-05,2]
[345080614,1733991180686,-150.0,9.87e-05,2]
[345080615,1733991180712,-1842.43,9.87e-05,2]
[345080616,1733991180734,-196.49,9.873e-05,2]
[345080617,1733991180755,-196.49,9.875e-05,2]
[345080618,1733991180776,-196.49,9.878e-05,2]
[345080619,1733991180797,-196.49,9.881e-05,2]
[345080620,1733991180817,-196.49,9.883e-05,2]
[345080621,1733991180838,-196.49,9.886e-05,2]
[345080622,1733991180859,-196.49,9.888e-05,2]
[345080623,1733991180880,-196.49,9.891e-05,2]
[345080624,1733991180902,-196.49,9.894e-05,2]
[345080625,1733991180926,-196.49,9.896e-05,2]
[345080626,1733991180947,-196.49,9.899e-05,2]
[345080627,1733991180977,-700.0,9.9e-05,3]
[345080628,1733991181021,-196.49,9.901e-05,2]
[345080629,1733991181048,-196.49,9.904e-05,2]
[345080630,1733991181084,-196.49,9.907e-05,2]
[345080631,1733991181106,-196.49,9.909e-05,2]
[345080632,1733991181128,-196.49,9.912e-05,2]
[345080633,1733991181152,-196.49,9.914e-05,2]
[345080634,1733991181175,-196.49,9.917e-05,2]
[345080635,1733991181200,-196.49,9.92e-05,2]
[345080636,1733991181224,-196.49,9.922e-05,2]
[345080637,1733991181245,-500.0,9.958e-05,2]
[345080638,1733991181266,-417.28395791,9.972e-05,2]
[345080639,1733991181288,-1000.0,0.0001,2]
[345080640,1733991181314,-700.0,0.0001,3]
[345080641,1733991181336,-2466.51032,0.0001,2]
[345080642,1733991181356,-2466.51033,0.0001,2]
[345080643,1733991181377,-2466.51032,0.0001,2]
[345080644,1733991181398,-2466.51033,0.0001,2]
[345080645,1733991181420,-2466.51033,0.0001,2]
[345080646,1733991181444,-2466.51032,0.0001,2]
[345080647,1733991181468,-165.0604497,0.0001,2]
[345080648,1733991181490,-224.51,0.0001,2]
[345080649,1733991181511,-500.0,0.00010095,2]
[345080650,1733991181534,-1000.0,0.00010099,2]
[345080651,1733991181554,-500.0,0.000101,2]
[345080652,1733991181576,-500.0,0.000101,2]
[345080653,1733991181599,-505.39,0.000101,2]
[345080654,1733991181621,-500.0,0.000101,2]
[345080655,1733991181645,-500.0,0.000101,2]
[345080656,1733991181667,-500.0,0.000101,2]
[345080657,1733991181689,-500.0,0.000101,2]
[345080658,1733991181715,-500.0,0.000101,2]
[345080659,1733991181738,-500.0,0.000101,2]
[345080660,1733991181761,-500.0,0.000101,2]
[345080661,1733991181783,-500.0,0.000101,2]
[345080662,1733991181806,-500.0,0.000101,2]
[345080663,1733991181828,-500.0,0.000101,2]
[345080664,1733991181850,-500.0,0.000101,2]
[345080665,1733991181873,-500.0,0.000101,2]
[345080666,1733991181895,-500.0,0.000101,2]
[345080667,1733991181918,-500.0,0.000101,2]
[345080668,1733991181941,-500.0,0.000101,2]
[345080669,1733991181967,-500.0,0.000101,2]
[345080670,1733991181989,-500.0,0.000101,2]
[345080671,1733991182011,-500.0,0.000101,2]
[345080672,1733991182034,-500.0,0.000101,2]
[345080673,1733991182057,-500.0,0.000101,2]
[345080674,1733991182081,-500.0,0.000101,2]
[345080675,1733991182104,-500.0,0.000101,2]
[345080676,1733991182127,-500.0,0.000101,2]
[345080677,1733991182155,-500.0,0.000101,2]
[345080678,1733991182177,-50000.0,0.000101,2]
[345080679,1733991182204,-500.0,0.000101,2]
[345080680,1733991182227,-500.0,0.000101,2]
[345080681,1733991182250,-500.13,0.000101,2]
[345080682,1733991182272,-500.0,0.000101,2]
[345080683,1733991182294,-500.0,0.000101,2]
[345080684,1733991182316,-500.0,0.000101,2]
[345080685,1733991182340,-500.0,0.000101,2]
[345080686,1733991182362,-500.0,0.000101,2]
[345080687,1733991182384,-500.0,0.000101,2]
[345080688,1733991182631,-500.0,0.000101,2]
[345080689,1733991182654,-500.0,0.000101,2]
[345080690,1733991182676,-500.0,0.000101,2]
[345080691,1733991182699,-500.0,0.000101,2]
[345080692,1733991182725,-500.0,0.000101,2]
[345080693,1733991182747,-500.0,0.000101,2]
[345080694,1733991182768,-500.0,0.000101,2]
[345080695,1733991182790,-377.0,0.000101,2]
[345080696,1733991182813,-500.0,0.000101,2]
[345080697,1733991182835,-500.0,0.000101,2]
[345080698,1733991182858,-500.0,0.000101,2]
[345080699,1733991182881,-500.0,0.000101,2]
[345080700,1733991182902,-500.0,0.000101,2]
[345080701,1733991182925,-500.0,0.000101,2]
[345080702,1733991182946,-500.0,0.000101,2]
[345080703,1733991182971,-500.0,0.000101,2]
[345080704,1733991182994,-500.0,0.000101,2]
[345080705,1733991183019,-500.0,0.000101,2]
[345080706,1733991183044,-500.0,0.000101,2]
[345080707,1733991183067,-500.0,0.000101,2]
[345080708,1733991183092,-500.0,0.000101,2]
[345080709,1733991183117,-500.0,0.000101,2]
[345080710,1733991183142,-522.5,0.00010137,2]
[345080711,1733991183169,-327.77,0.00010137,2]
[345080712,1733991183194,-417.28395791,0.00010222,2]
[345080713,1733991183221,-500.0,0.00010232,2]
[345080714,1733991183246,-848.51628064,0.00010261,2]
[345080715,1733991183270,-848.51628063,0.00010261,2]
[345080716,1733991183294,-463.771,0.0001035,2]
[345080717,1733991183317,-500.0,0.00010369,2]
[345080718,1733991183342,-166.04,0.00010419,2]
[345080719,1733991183367,-901.72,0.0001043,2]
[345080720,1733991183390,-2676.17,0.00010438,2]
[345080721,1733991183413,-729.0,0.00010458,2]
[345080722,1733991183437,-963.81,0.00010476,2]
[345080723,1733991183465,-500.0,0.00010506,2]
[345080724,1733991183492,-1000.0,0.00010506,2]
[345080725,1733991183519,-185.0,0.00010537,2]
[345080726,1733991183544,-150.0,0.00010591,2]
[345080727,1733991183568,-150.0,0.00010591,2]
[345080728,1733991183593,-150.0,0.00010613,2]
[345080729,1733991183616,-417.28395791,0.00010621,2]
[345080730,1733991183639,-500.0,0.00010643,2]
[345080731,1733991183663,-150.0,0.00010689,2]
[345080732,1733991183688,-700.0,0.000107,3]
[345080733,1733991183719,-295.0288354,0.00010713,2]
[345080734,1733991183743,-150.0,0.00010715,2]
[345080735,1733991183768,-150.0,0.00010721,2]
[345080736,1733991183793,-150.0,0.0001073,2]
[345080737,1733991183818,-165.63483601,0.00010732,2]
[345080738,1733991183841,-150.0,0.00010736,2]
[345080739,1733991183867,-150.0,0.00010743,2]
[345080740,1733991183890,-352959.699339,0.00010758,2]
[345080741,1733991183915,-150.0,0.00010763,2]
[345080742,1733991183940,-150.0,0.0001077,2]
[345080743,1733991183968,-150.0,0.00010774,2]
[345080744,1733991183991,-500.0,0.0001078,2]
[345080745,1733991184016,-700.0,0.000108,3]
[345080746,1733991184040,-900.0,0.0001083,2]
[345080747,1733991184065,-150.0,0.0001083,2]
[345080748,1733991184089,-150.0,0.00010847,2]
[345080749,1733991184113,-150.0,0.0001086,2]
[345080750,1733991184151,-417.28395791,0.00010883,2]
[345080751,1733991184175,-82007.53985548,0.00010898,2]
[345080752,1733991184202,-151.0,0.00010898,2]
[345080753,1733991184229,-151.0,0.00010898,2]
[345080754,1733991184254,-3170.55555195,0.000109,2]
[345080755,1733991184278,-500.0,0.000109,5]
[345080756,1733991184303,-500.0,0.000109,4]
[345080757,1733991184327,-151.0,0.000109,2]
[345080758,1733991184351,-151.0,0.000109,2]
[345080759,1733991184375,-151.0,0.000109,2]
[345080760,1733991184399,-151.0,0.000109,2]
[345080761,1733991184423,-1058.0,0.000109,3]
[345080762,1733991184452,-195.64783167,0.000109,2]
[345080763,1733991184484,-222.10238278,0.000109,2]
[345080764,1733991184508,-500.0,0.00010917,2]
[345080765,1733991184533,-3895.584,0.00010928,2]
[345080766,1733991184556,-150.727,0.00010928,2]
[345080767,1733991184579,-13728.0,0.00010928,2]
[345080768,1733991184602,-1170.174,0.00010928,2]
[345080769,1733991184625,-1099.0,0.00010928,2]
[345080770,1733991184648,-12221.86780546,0.00010934,2]
[345080771,1733991184671,-717.165626,0.00010958,2]
[345080772,1733991184694,-717.165626,0.00010958,2]